{"text_format":"3","workbook":"xlsx","n_sheets":2,"sheets":["开始","婚礼预算"],"read":"whole","date_system":"1900"}

{"sheet":"开始","index":0,"n_rows":7,"n_cols":2,"rows_kept":7}
[null,"关于此模板"]
[null,"使用此模板记录各项目的实际婚礼费用，并根据预算金额跟踪它们。"]
[null,"在各表中输入以下各项的费用：服装、装饰、礼品、花卉、音乐、摄影、宴会、纸品、交通和杂项。"]
[null,"自动计算估计和实际的费用总计。"]
[null,"注释： "]
[null,"“婚礼预算”工作表的 A 列中提供了额外的说明。此文本已被有意隐藏。若要删除文本，请选择 A 列，然后选择“删除”。若要取消隐藏文本，请选择 A 列，然后更改字体颜色。"]
[null,"若要了解有关表格的详细信息，请在表格内按 Shift + F10，选择“表格”选项，然后选择“替换文本”。"]

{"sheet":"婚礼预算","index":1,"n_rows":93,"n_cols":4,"rows_kept":93,"merged":[[0,1,0,3],[2,1,2,3],[6,1,6,3],[15,1,15,3],[25,1,25,3],[34,1,34,3],[43,1,43,3],[50,1,50,3],[59,1,59,3],[68,1,68,3],[77,1,77,3],[85,1,85,3]]}
[null,"婚礼预算"]
[]
[null,"费用总计 "]
[null,"项目 ","估算金额","实际"]
[null,"费用总计 ",{"$f":"SUM(服装[[#Totals],[估计]],装饰[[#Totals],[估计]],礼品[[#Totals],[估计]],花卉[[#Totals],[估计]],音乐[[#Totals],[估计]],摄影[[#Totals],[估计]],宴会[[#Totals],[估计]],纸品和印刷品[[#Totals],[估计]],交通[[#Totals],[估计]],其他费用[[#Totals],[估计]])","v":0},{"$f":"SUM(服装[[#Totals],[实际]],装饰[[#Totals],[实际]],礼品[[#Totals],[实际]],花卉[[#Totals],[实际]],音乐[[#Totals],[实际]],摄影[[#Totals],[实际]],宴会[[#Totals],[实际]],纸品和印刷品[[#Totals],[实际]],交通[[#Totals],[实际]],其他费用[[#Totals],[实际]],)","v":0}]
[]
[null,"服装"]
[null,"项目 ","估计","实际"]
[null,"订婚戒指"]
[null,"结婚戒指"]
[null,"婚纱"]
[null,"面纱/头巾"]
[null,"其他："]
[null,"服装总计",{"$f":"SUBTOTAL(109,服装[估计])","v":0},{"$f":"SUBTOTAL(109,服装[实际])","v":0}]
[]
[null,"装饰品"]
[null,"项目 ","估计","实际"]
[null,"教堂长椅/其他席位的蝴蝶结"]
[null,"桌子中心装饰品（不包括花朵）"]
[null,"蜡烛"]
[null,"照明"]
[null,"气球"]
[null,"其他："]
[null,"装饰总计",{"$f":"SUBTOTAL(109,装饰[估计])","v":0},{"$f":"SUBTOTAL(109,装饰[实际])","v":0}]
[]
[null,"礼品"]
[null,"项目 ","估计","实际"]
[null,"出席人数"]
[null,"新娘新郎"]
[null,"父母"]
[null,"牧师/其他参加者"]
[null,"其他："]
[null,"礼品总计",{"$f":"SUBTOTAL(109,礼品[估计])","v":0},{"$f":"SUBTOTAL(109,礼品[实际])","v":0}]
[]
[null,"花朵"]
[null,"项目 ","估计","实际"]
[null,"花束"]
[null,"钮孔花"]
[null,"襟花"]
[null,"典礼"]
[null,"其他："]
[null,"花卉总计",{"$f":"SUBTOTAL(109,花卉[估计])","v":0},{"$f":"SUBTOTAL(109,花卉[实际])","v":0}]
[]
[null,"音乐"]
[null,"项目 ","估计","实际"]
[null,"典礼的歌手"]
[null,"宴会乐队/DJ"]
[null,"其他："]
[null,"音乐总计",{"$f":"SUBTOTAL(109,音乐[估计])","v":0},{"$f":"SUBTOTAL(109,音乐[实际])","v":0}]
[]
[null,"摄影"]
[null,"项目 ","估计","实际"]
[null,"正式拍摄"]
[null,"即兴拍摄"]
[null,"加洗"]
[null,"相册"]
[null,"其他："]
[null,"摄影总计",{"$f":"SUBTOTAL(109,摄影[估计])","v":0},{"$f":"SUBTOTAL(109,摄影[实际])","v":0}]
[]
[null,"宴会 "]
[null,"项目 ","估计","实际"]
[null,"房间/大厅费用"]
[null,"桌椅"]
[null,"食品"]
[null,"亚麻布"]
[null,"其他："]
[null,"宴会总计（不含音乐和装饰）",{"$f":"SUBTOTAL(109,宴会[估计])","v":0},{"$f":"SUBTOTAL(109,宴会[实际])","v":0}]
[]
[null,"纸品和印刷品"]
[null,"项目 ","估计","实际"]
[null,"邀请"]
[null,"公告"]
[null,"感谢卡片"]
[null,"个人便条"]
[null,"其他："]
[null,"纸品/印刷品总计",{"$f":"SUBTOTAL(109,纸品和印刷品[估计])","v":0},{"$f":"SUBTOTAL(109,纸品和印刷品[实际])","v":0}]
[]
[null,"交通"]
[null,"项目 ","估计","实际"]
[null,"豪华轿车/有轨电车"]
[null,"停车"]
[null,"出租车"]
[null,"其他："]
[null,"交通工具总计",{"$f":"SUBTOTAL(109,交通[估计])","v":0},{"$f":"SUBTOTAL(109,交通[实际])","v":0}]
[]
[null,"其他费用"]
[null,"项目 ","估计","实际"]
[null,"司仪"]
[null,"教堂/婚礼场所费用"]
[null,"婚礼协调员"]
[null,"预演晚宴"]
[null,"其他："]
[null,"其他费用总计",{"$f":"SUBTOTAL(109,其他费用[估计])","v":0},{"$f":"SUBTOTAL(109,其他费用[实际])","v":0}]